bitfinex/quotes_BTCUSD_20241128
["timestamp","ask_amount","ask_price","bid_price","bid_amount"]
[1732766792619,0.0008577,95624.0,95623.0,0.37242221]
[1732766793519,0.0008577,95624.0,95623.0,0.015]
[1732766793728,0.1054337,95624.0,95623.0,0.015]
[1732766793946,0.10898454,95624.0,95623.0,0.015]
[1732766796919,0.00440854,95624.0,95623.0,0.22242221]
[1732766797094,0.00440854,95624.0,95623.0,0.11784521]
[1732766797331,0.0008577,95624.0,95623.0,0.22242221]
[1732766798594,0.0008577,95624.0,95623.0,0.37242221]
[1732766799662,0.0008577,95624.0,95623.0,0.46554212]
[1732766800533,0.0008577,95624.0,95623.0,0.37242221]
[1732766802036,0.0008577,95624.0,95623.0,0.60522198]
[1732766802284,0.0008577,95624.0,95623.0,0.37242221]
[1732766802491,0.0008577,95624.0,95623.0,0.65178194]
[1732766802715,0.0008577,95624.0,95623.0,0.37242221]
[1732766803164,0.0008577,95624.0,95623.0,0.36813761]
[1732766803590,0.0008577,95624.0,95623.0,0.37413761]
[1732766804022,0.0008577,95624.0,95623.0,0.36813761]
[1732766804258,0.0008577,95624.0,95623.0,0.37613761]
[1732766804474,0.0008577,95624.0,95623.0,0.36713761]
[1732766804692,0.0008577,95624.0,95623.0,0.37613761]
[1732766816869,0.0008577,95624.0,95623.0,0.34613761]
[1732766818180,0.0008577,95624.0,95623.0,0.62572319]
[1732766818386,0.0008577,95624.0,95623.0,0.34613761]
[1732766820105,0.0008577,95624.0,95623.0,0.7588005]
[1732766820313,0.0008577,95624.0,95623.0,0.34613761]
[1732766821410,0.0008577,95624.0,95623.0,0.7588005]
[1732766821871,0.0008577,95624.0,95623.0,0.34613761]
[1732766822307,0.0008577,95624.0,95623.0,0.7588005]
[1732766822731,0.0008577,95624.0,95623.0,0.34613761]
[1732766825443,0.0008571,95634.0,95623.0,0.34613761]
[1732766825444,0.0008576,95677.0,95648.0,0.25455]
[1732766825661,0.0008576,95677.0,95648.0,0.35739521]
[1732766825874,0.0008576,95677.0,95668.0,0.254528]
[1732766826118,0.0008576,95677.0,95668.0,0.35737321]
[1732766828095,0.0008576,95677.0,95668.0,0.37438717]
[1732766828592,0.0008576,95677.0,95668.0,0.38338717]
[1732766829019,0.0008576,95677.0,95668.0,0.39238717]
[1732766830288,0.0008576,95677.0,95668.0,0.38338717]
[1732766830497,0.0008576,95677.0,95668.0,0.39338717]
[1732766830745,0.0008576,95677.0,95668.0,0.42638717]
[1732766831892,0.0008576,95677.0,95668.0,0.38438717]
[1732766832105,0.0008576,95677.0,95668.0,0.39438717]
[1732766832317,0.0008576,95677.0,95668.0,0.67250277]
[1732766832528,0.0008576,95677.0,95668.0,0.39438717]
[1732766832753,0.0008576,95677.0,95668.0,0.37438717]
[1732766832992,0.0008576,95677.0,95668.0,0.37638717]
[1732766834320,0.0008576,95677.0,95668.0,0.5618007]
[1732766834532,0.0008576,95677.0,95668.0,0.56179236]
[1732766834959,0.0008576,95677.0,95668.0,0.37638717]
[1732766835417,0.0008576,95677.0,95668.0,0.37538717]
[1732766835633,0.0008576,95677.0,95668.0,0.37438717]
[1732766836315,0.0008576,95677.0,95668.0,0.51340844]
[1732766836531,0.0008576,95677.0,95668.0,0.31707734]
[1732766836769,0.0008576,95677.0,95668.0,0.22438717]
[1732766837209,0.0024,95669.0,95668.0,0.22438717]
[1732766837884,0.0024,95669.0,95668.0,0.25284521]
[1732766838532,0.0032577,95669.0,95668.0,0.35737321]
[1732766838989,0.0032577,95669.0,95668.0,0.25284521]
[1732766839198,0.0012577,95669.0,95668.0,0.35737321]
[1732766839417,0.0032577,95669.0,95668.0,0.35737321]
[1732766839678,0.0022577,95669.0,95668.0,0.36637321]
[1732766839904,0.0032577,95669.0,95668.0,0.37537321]
[1732766840324,0.0022577,95669.0,95668.0,0.36637321]
[1732766840797,0.0032577,95669.0,95668.0,0.37437321]
[1732766841031,0.0032577,95669.0,95668.0,0.26984521]
[1732766841460,0.0032577,95669.0,95668.0,0.37437321]
[1732766842992,0.0032577,95669.0,95668.0,0.46709738]
[1732766844296,0.0032577,95669.0,95668.0,0.37437321]
[1732766844714,0.0032577,95669.0,95668.0,0.46707563]
[1732766845224,0.0032577,95669.0,95668.0,0.37437321]
[1732766847387,0.0032577,95669.0,95668.0,0.51345947]
[1732766848672,0.0032577,95669.0,95668.0,0.4671156]
[1732766849545,0.0032577,95669.0,95668.0,0.37437321]
[1732766850048,0.0032577,95669.0,95668.0,0.51345947]
[1732766850255,0.0032577,95669.0,95668.0,0.37437321]
[1732766850700,0.0032577,95669.0,95668.0,0.60618364]
[1732766850933,0.0032577,95669.0,95668.0,0.37437321]
[1732766857393,0.0032577,95669.0,95668.0,0.60621231]
[1732766858529,0.0032577,95669.0,95668.0,0.37437321]
[1732766865805,0.0022577,95669.0,95668.0,0.36637321]
[1732766866280,0.0102577,95669.0,95668.0,0.36737321]
[1732766866910,0.0092577,95669.0,95668.0,0.35837321]
[1732766867182,0.0112577,95669.0,95668.0,0.35937321]
[1732766895149,0.0112577,95669.0,95668.0,0.40434187]
[1732766896658,0.0112577,95669.0,95668.0,0.41434187]
[1732766897760,0.0112577,95669.0,95668.0,0.43734187]
[1732766898413,0.0112577,95669.0,95668.0,0.41434187]
[1732766901945,0.0112577,95669.0,95668.0,0.37937321]
[1732766902590,0.0112577,95669.0,95668.0,0.69384524]
[1732766903041,0.0112577,95669.0,95668.0,0.37937321]
[1732766903274,0.0112577,95669.0,95668.0,0.69385071]
[1732766903501,0.0112577,95669.0,95668.0,0.67385071]
[1732766903762,0.0112577,95669.0,95668.0,0.35937321]
[1732766903998,0.0112577,95669.0,95668.0,0.36937321]
[1732766904461,0.0062577,95669.0,95668.0,0.36937321]
[1732766905386,0.0062577,95669.0,95668.0,0.35937321]
[1732766905826,0.0062577,95669.0,95668.0,0.36937321]
[1732766906906,0.0062577,95669.0,95668.0,0.35937321]
[1732766907119,0.0071157,95669.0,95668.0,0.35937321]
[1732766908015,0.0071157,95669.0,95668.0,0.20937321]
[1732766908487,0.0071157,95669.0,95668.0,0.21055282]
[1732766909157,0.0071157,95669.0,95668.0,0.21060405]
[1732766909381,0.0071157,95669.0,95668.0,0.36060405]
[1732766909601,0.0071157,95669.0,95668.0,0.35937321]
[1732766917207,0.0071157,95669.0,95668.0,0.35937321]
[1732766924015,0.0071157,95669.0,95668.0,0.25484521]
[1732766924254,0.0071157,95669.0,95668.0,0.35937321]
[1732766924466,0.0071157,95669.0,95668.0,0.25484521]
[1732766924682,0.0071157,95669.0,95668.0,0.35937321]
[1732766925379,0.0071157,95669.0,95668.0,0.63894814]
[1732766925802,0.002858,95669.0,95668.0,0.63794814]
[1732766926223,0.002858,95669.0,95668.0,0.64694814]
[1732766926661,0.000858,95669.0,95668.0,0.63694814]
[1732766927131,0.001858,95669.0,95668.0,0.65494814]
[1732766927360,0.001858,95669.0,95668.0,0.37537321]
[1732766928024,0.000858,95669.0,95668.0,0.36637321]
[1732766928259,0.001858,95669.0,95668.0,0.37537321]
[1732766928475,0.000858,95669.0,95668.0,0.36637321]
[1732766928905,0.000858,95669.0,95668.0,0.35737321]
[1732766929331,0.000858,95669.0,95668.0,0.36637321]
[1732766929562,0.000858,95669.0,95668.0,0.26184521]
[1732766929778,0.000858,95669.0,95668.0,0.25456081]
[1732766929994,0.01194931,95669.0,95668.0,0.26356081]
[1732766930212,0.01194931,95669.0,95668.0,0.27256081]
[1732766930213,0.106385,95669.0,95668.0,0.27256081]
[1732766930442,0.01194931,95669.0,95668.0,0.27256081]
[1732766930679,0.11647631,95669.0,95668.0,0.26356081]
[1732766930898,0.11647631,95669.0,95668.0,0.11356081]
[1732766931118,0.11647631,95669.0,95668.0,0.30883406]
[1732766931339,0.11647631,95669.0,95668.0,0.26224799]
[1732766931558,0.11647631,95669.0,95668.0,0.26224298]
[1732766931792,0.11647631,95669.0,95668.0,0.26224314]
[1732766932027,0.11647631,95669.0,95668.0,0.12256081]
[1732766933154,0.11647631,95669.0,95668.0,0.11282092]
[1732766933369,0.11647631,95669.0,95668.0,0.0197156]
[1732766937528,0.01194931,95669.0,95668.0,0.0197156]
[1732766937729,0.106385,95669.0,95668.0,0.0197156]
[1732766937933,0.11646057,95669.0,95668.0,0.0197156]
[1732766938377,0.01193357,95669.0,95668.0,0.0197156]
[1732766938584,0.001858,95669.0,95668.0,0.0197156]
[1732766939048,0.106385,95669.0,95668.0,0.0197156]
[1732766939509,0.01193478,95669.0,95668.0,0.0197156]
[1732766939744,0.001858,95669.0,95668.0,0.0197156]
[1732766939955,0.001858,95669.0,95668.0,0.1242436]
[1732766940167,0.001858,95669.0,95668.0,0.12256081]
[1732766940377,0.001858,95669.0,95668.0,0.32005185]
[1732766940592,0.001858,95669.0,95668.0,0.22708881]
[1732766941261,0.001858,95669.0,95668.0,0.36650594]
[1732766941682,0.001858,95669.0,95668.0,0.22708881]
[1732766941887,0.001858,95669.0,95668.0,0.36650594]
[1732766942107,0.001858,95669.0,95668.0,0.22708881]
[1732766942762,0.001858,95669.0,95668.0,0.41298199]
[1732766943205,0.001858,95669.0,95668.0,0.22708881]
[1732766943685,0.001858,95669.0,95668.0,0.41299932]
[1732766943900,0.001858,95669.0,95668.0,0.22708881]
[1732766944529,0.001858,95669.0,95668.0,0.56299932]
[1732766945386,0.001858,95669.0,95668.0,0.37708881]
[1732766948550,0.001858,95669.0,95668.0,0.27256081]
[1732766948782,0.106385,95669.0,95668.0,0.0197156]
[1732766949001,0.11744274,95669.0,95668.0,0.0197156]
[1732766949201,0.11362796,95669.0,95668.0,0.0197156]
[1732766949634,0.11520324,95669.0,95668.0,0.0197156]
[1732766950048,0.11520324,95669.0,95668.0,0.0107156]
[1732766950264,0.11520324,95669.0,95668.0,0.0197156]
[1732766950499,0.11520324,95669.0,95668.0,0.0107156]
[1732766950722,0.11520324,95669.0,95668.0,0.0157156]
[1732766950936,0.11420324,95669.0,95668.0,0.0017156]
[1732766951383,0.11420324,95669.0,95668.0,0.0047156]
[1732766951623,0.11420324,95669.0,95668.0,0.0017156]
[1732766952480,0.11420324,95669.0,95668.0,0.0037156]
[1732766952923,0.11420324,95669.0,95668.0,0.0067156]
[1732766954049,0.11420324,95669.0,95668.0,0.0047156]
[1732766954273,0.11420324,95669.0,95668.0,0.0037156]
[1732766954698,0.11420324,95669.0,95668.0,0.0067156]
[1732766954926,0.11420324,95669.0,95668.0,0.0017156]
[1732766955151,0.11420324,95669.0,95668.0,0.0057156]
[1732766956030,0.11420324,95669.0,95668.0,0.0037156]
[1732766956883,0.11420324,95669.0,95668.0,0.0017156]
[1732766957296,0.11420324,95669.0,95668.0,0.0037156]
[1732766957729,0.11420324,95669.0,95668.0,0.0017156]
[1732766957943,0.11420324,95669.0,95668.0,0.0037156]
[1732766958626,0.11420324,95669.0,95668.0,0.0067156]
[1732766958857,0.11420324,95669.0,95668.0,0.0017156]
[1732766959305,0.11520324,95669.0,95668.0,0.0077156]
[1732766959527,0.11426143,95669.0,95668.0,0.0077156]
[1732766960228,0.11426143,95669.0,95668.0,0.0117156]
[1732766961064,0.11326143,95669.0,95668.0,0.0057156]
[1732766961517,0.00973443,95669.0,95668.0,0.1162436]
[1732766961737,0.000858,95669.0,95668.0,0.36308881]
[1732766961960,0.001858,95669.0,95668.0,0.36908881]
[1732766962181,0.001858,95669.0,95668.0,0.26456081]
[1732766962672,0.001858,95669.0,95668.0,0.36908881]
[1732766963332,0.001858,95669.0,95668.0,0.5086508]
[1732766963562,0.001858,95669.0,95668.0,0.4001228]
[1732766963786,0.001858,95669.0,95668.0,0.5086508]
[1732766964019,0.001858,95669.0,95668.0,0.4041228]
[1732766964235,0.106385,95669.0,95668.0,0.30127759]
[1732766964454,0.105385,95669.0,95668.0,0.0017156]
[1732766964672,0.11177256,95669.0,95668.0,0.0097156]
[1732766964896,0.11177256,95669.0,95668.0,0.0157156]
[1732766965119,0.11177256,95669.0,95668.0,0.0097156]
[1732766965339,0.11177256,95669.0,95668.0,0.0017156]
[1732766965547,0.11177256,95669.0,95668.0,0.0077156]
[1732766965755,0.11177256,95669.0,95668.0,0.0017156]
[1732766966174,0.11177256,95669.0,95668.0,0.0087156]
[1732766966594,0.11177256,95669.0,95668.0,0.0167156]
[1732766966595,0.11271437,95669.0,95668.0,0.0167156]
[1732766966804,0.11271437,95669.0,95668.0,0.0217156]
[1732766967025,0.11177256,95669.0,95668.0,0.0217156]
[1732766967443,0.11177256,95669.0,95668.0,0.0167156]
[1732766967684,0.11177256,95669.0,95668.0,0.0217156]
[1732766967901,0.11177256,95669.0,95668.0,0.0067156]
[1732766968107,0.11177256,95669.0,95668.0,0.0017156]
[1732766968352,0.11271437,95669.0,95668.0,0.0017156]
[1732766968583,0.11271437,95669.0,95668.0,0.0057156]
[1732766968805,0.11271437,95669.0,95668.0,0.0117156]
[1732766969046,0.11271437,95669.0,95668.0,0.0057156]
[1732766969508,0.11271437,95669.0,95668.0,0.0117156]
[1732766972188,0.11271437,95669.0,95668.0,0.0057156]
[1732766972625,0.11271437,95669.0,95668.0,0.0077156]
[1732766972851,0.11271437,95669.0,95668.0,0.0037156]
[1732766973304,0.11271437,95669.0,95668.0,0.0047156]
[1732766979477,0.11246602,95669.0,95668.0,0.0047156]
[1732766985919,0.24831123,95669.0,95668.0,0.0047156]
[1732766986138,0.25736942,95669.0,95668.0,0.0047156]
[1732766988087,0.14452421,95669.0,95668.0,0.0047156]
[1732766988361,0.14546602,95669.0,95668.0,0.0047156]
[1732766990951,0.15546602,95669.0,95668.0,0.0047156]
[1732766991207,0.25831123,95669.0,95668.0,0.0047156]
[1732766991433,0.25736942,95669.0,95668.0,0.0047156]
[1732766993862,0.25736942,95669.0,95668.0,0.0027156]
[1732766994066,0.26336942,95669.0,95668.0,0.0027156]
[1732766994507,0.25936942,95669.0,95668.0,0.5017156]
[1732766995400,0.25936942,95669.0,95668.0,0.5027156]
[1732766995401,0.26536942,95669.0,95668.0,0.5027156]
[1732766996055,0.26336942,95669.0,95668.0,0.5027156]
[1732766996268,0.26636942,95669.0,95668.0,0.5027156]
[1732766996692,0.26036942,95669.0,95668.0,0.5017156]
[1732766997154,0.26636942,95669.0,95668.0,0.5017156]
[1732767005271,0.12052421,95669.0,95668.0,0.5017156]
[1732767005679,0.12297346,95669.0,95668.0,0.5017156]
[1732767006091,0.11997346,95669.0,95668.0,0.5017156]
[1732767006768,0.12297346,95669.0,95668.0,0.5017156]
[1732767006955,0.11697346,95669.0,95668.0,0.5017156]
[1732767007159,0.11997346,95669.0,95668.0,0.5017156]
[1732767007608,0.11397346,95669.0,95668.0,0.5017156]
[1732767008028,0.11397346,95669.0,95668.0,0.5087156]
[1732767008233,0.11397346,95669.0,95668.0,0.5017156]
[1732767008652,0.11497346,95669.0,95668.0,0.5147156]
[1732767009020,0.11497346,95669.0,95668.0,0.5097156]
[1732767009421,0.11497346,95669.0,95668.0,0.5147156]
[1732767013168,0.11497346,95669.0,95668.0,0.5097156]
[1732767013394,0.11397346,95669.0,95668.0,0.5017156]
[1732767013610,0.11397346,95669.0,95668.0,0.5147156]
[1732767013825,0.11497346,95669.0,95668.0,0.5147156]
[1732767014107,0.11497346,95669.0,95668.0,0.5017156]
[1732767014315,0.11597346,95669.0,95668.0,0.5097156]
[1732767014517,0.11597346,95669.0,95668.0,0.5017156]
[1732767014518,0.11497346,95669.0,95668.0,0.5017156]
[1732767014940,0.11497346,95669.0,95668.0,0.5087156]
[1732767015551,0.11497346,95669.0,95668.0,0.5137156]
[1732767015961,0.11497346,95669.0,95668.0,0.5087156]
[1732767016157,0.11497346,95669.0,95668.0,0.5137156]
[1732767023089,0.11591527,95669.0,95668.0,0.5137156]
[1732767024154,0.13295141,95669.0,95668.0,0.5137156]
[1732767024584,0.13295141,95669.0,95668.0,0.5087156]
[1732767024797,0.13195141,95669.0,95668.0,0.5017156]
[1732767025000,0.13195141,95669.0,95668.0,0.5137156]
[1732767025906,0.11491527,95669.0,95668.0,0.5087156]
[1732767026338,0.11491527,95669.0,95668.0,0.5107156]
[1732767027032,0.11491527,95669.0,95668.0,0.51044871]
[1732767027249,0.11491527,95669.0,95668.0,0.50344871]
[1732767027466,0.11491527,95669.0,95668.0,0.50544871]
[1732767027683,0.11491527,95669.0,95668.0,0.50344871]
[1732767027892,0.11491527,95669.0,95668.0,0.50144871]
[1732767028100,0.11491527,95669.0,95668.0,0.50344871]
[1732767028315,0.11491527,95669.0,95668.0,0.50244871]
[1732767028729,0.11491527,95669.0,95668.0,0.50644871]
[1732767029177,0.11491527,95669.0,95668.0,0.50544871]
[1732767029411,0.11491527,95669.0,95668.0,0.50844871]
[1732767032125,0.11037889,95669.0,95668.0,0.50844871]
[1732767032885,0.11037889,95669.0,95668.0,0.50544871]
[1732767033238,0.11037889,95669.0,95668.0,0.50844871]
[1732767033444,0.11037889,95669.0,95668.0,0.50444871]
[1732767033978,0.11037889,95669.0,95668.0,0.50844871]
[1732767034212,0.13337889,95669.0,95668.0,0.50844871]
[1732767034407,0.13337889,95669.0,95668.0,0.50544871]
[1732767034614,0.13337889,95669.0,95668.0,0.50144871]
[1732767034823,0.13337889,95669.0,95668.0,0.50444871]
[1732767035031,0.14337889,95669.0,95668.0,0.50544871]
[1732767035240,0.2562241,95669.0,95668.0,0.50144871]
[1732767035460,0.25528229,95669.0,95668.0,0.50144871]
[1732767035661,0.40528229,95669.0,95668.0,0.50244871]
[1732767036079,0.40528229,95669.0,95668.0,0.50144871]
[1732767036305,0.40528229,95669.0,95668.0,0.33703459]
[1732767036509,0.40628229,95669.0,95668.0,0.33703459]
[1732767037018,0.40628229,95669.0,95668.0,0.23250459]
[1732767037219,0.40928229,95669.0,95668.0,0.23250459]
[1732767037635,0.50001746,95669.0,95668.0,0.23250459]
[1732767037859,0.50001746,95669.0,95668.0,0.12897459]
[1732767037860,0.41228229,95669.0,95668.0,0.12897459]
[1732767038510,0.41128229,95669.0,95668.0,0.12897459]
[1732767038716,0.40828229,95669.0,95668.0,0.11962592]
[1732767038917,0.40828229,95669.0,95668.0,0.01509592]
[1732767039396,0.40828229,95669.0,95649.0,0.0017148]
[1732767039397,0.147547,95650.0,95649.0,0.0017148]
[1732767039597,0.25133402,95650.0,95649.0,0.0017148]
[1732767039803,0.25039221,95650.0,95649.0,0.0017148]
[1732767040007,0.25466365,95650.0,95649.0,0.0017148]
[1732767040556,0.26066365,95650.0,95649.0,0.0027148]
[1732767041601,0.26366365,95650.0,95649.0,0.0027148]
[1732767042360,0.28096737,95650.0,95649.0,0.0027148]
[1732767042974,0.43096737,95650.0,95649.0,0.0027148]
[1732767049462,0.43096737,95650.0,95649.0,8e-07]
[1732767050612,0.42796737,95650.0,95649.0,8e-07]
[1732767050788,0.127576,95624.0,95623.0,0.0017154]
[1732767050986,0.12851781,95624.0,95623.0,0.0017154]
[1732767051252,0.13273783,95624.0,95623.0,0.0017154]
[1732767052387,0.13273783,95624.0,95623.0,0.0027154]
[1732767053279,0.13273783,95624.0,95623.0,0.0047154]
[1732767053505,0.15006061,95624.0,95623.0,0.0047154]
[1732767054218,0.10879602,95624.0,95623.0,0.0047154]
[1732767054457,0.10973783,95624.0,95623.0,0.0047154]
[1732767058729,0.13273783,95624.0,95623.0,0.0047154]
[1732767062765,0.24558304,95624.0,95623.0,0.0047154]
[1732767062991,0.24464123,95624.0,95623.0,0.0047154]
[1732767065174,0.25464123,95624.0,95623.0,0.0047154]
[1732767066044,0.24464123,95624.0,95623.0,0.0047154]
[1732767066256,0.25464123,95624.0,95623.0,0.0047154]
[1732767066476,0.25464123,95624.0,95623.0,0.0027154]
[1732767066686,0.24464123,95624.0,95623.0,0.0027154]
[1732767066906,0.26064123,95624.0,95623.0,0.0037154]
[1732767067130,0.25464123,95624.0,95623.0,0.0017154]
[1732767067623,0.26364123,95624.0,95623.0,0.0027154]
[1732767067847,0.25764123,95624.0,95623.0,0.0017154]
[1732767068057,0.26064123,95624.0,95623.0,0.0027154]
[1732767068518,0.25864123,95624.0,95623.0,0.0027154]
[1732767068991,0.25564123,95624.0,95623.0,0.0027154]
[1732767069215,0.25864123,95624.0,95623.0,4e-07]
[1732767069438,0.40864123,95624.0,95623.0,4e-07]
[1732767069656,0.4412229,95624.0,95623.0,4e-07]
[1732767069871,0.4412229,95624.0,95609.0,0.0017154]
[1732767069872,0.147591,95610.0,95609.0,0.0017154]
[1732767070089,0.25137802,95610.0,95609.0,0.0017154]
[1732767070317,0.40043621,95610.0,95609.0,0.0017154]
[1732767070527,0.40463995,95610.0,95609.0,0.0017154]
[1732767071202,0.98102639,95610.0,95609.0,4e-07]
[1732767071663,0.98102639,95610.0,95602.0,0.0016754]
[1732767071664,0.297599,95603.0,95602.0,0.0016754]
[1732767071870,0.40044421,95603.0,95602.0,0.0016754]
[1732767072328,0.43721655,95603.0,95602.0,0.0016754]
[1732767072545,0.40463892,95603.0,95602.0,0.0016754]
[1732767073232,0.4209207,95603.0,95602.0,0.0016754]
[1732767074315,0.4299207,95603.0,95602.0,0.0026754]
[1732767075159,0.4209207,95603.0,95602.0,0.0016754]
[1732767075421,0.4289207,95603.0,95602.0,0.0026754]
[1732767075611,0.4329207,95603.0,95602.0,0.0026754]
[1732767077169,0.4249207,95603.0,95602.0,0.0016754]
[1732767077386,0.4209207,95603.0,95602.0,0.0026754]
[1732767077608,0.4289207,95603.0,95602.0,0.0026754]
[1732767077827,0.4329207,95603.0,95602.0,0.0026754]
[1732767086714,0.13707549,95603.0,95602.0,0.0026754]
[1732767086953,0.1380173,95603.0,95602.0,0.0026754]
[1732767087203,0.1380173,95603.0,95602.0,0.1072754]
[1732767087204,0.01619471,95603.0,95602.0,0.1072754]
[1732767087424,0.01619471,95603.0,95602.0,0.36012061]
[1732767087659,0.01219471,95603.0,95602.0,0.45321833]
[1732767087896,0.00094181,95618.0,95603.0,0.15]
[1732767088112,0.104595,95607.0,95603.0,0.25284521]
[1732767088377,0.104597,95605.0,95603.0,0.25284521]
[1732767088806,0.209152,95624.0,95603.0,0.25284521]
[1732767089021,0.209152,95624.0,95602.0,0.0106754]
[1732767089022,0.00711827,95604.0,95602.0,0.0106754]
[1732767089244,0.00094181,95607.0,95602.0,0.1152744]
[1732767089463,0.00711736,95603.0,95602.0,0.0106754]
[1732767089667,0.209156,95622.0,95602.0,0.11352061]
[1732767089882,0.209156,95622.0,95607.0,0.104594]
[1732767089883,0.104588,95613.0,95607.0,0.104594]
[1732767090115,0.00094181,95612.0,95605.0,0.104597]
[1732767090374,0.00094181,95612.0,95603.0,0.10284521]
[1732767090643,0.09356289,95663.0,95603.0,0.10284521]
[1732767090644,0.00094181,95630.0,95607.0,0.15]
[1732767090916,0.104562,95637.0,95620.0,0.15099703]
[1732767091153,0.5438,95662.0,95611.0,0.09300047]
[1732767091154,0.104555,95644.0,95638.0,0.10456]
[1732767091391,0.209092,95652.0,95636.0,0.209125]
[1732767091622,0.21003581,95651.0,95641.0,0.15]
[1732767091855,0.10455,95648.0,95642.0,0.104555]
[1732767092086,0.10455,95648.0,95643.0,0.104555]
[1732767092293,0.10455,95648.0,95642.0,0.104556]
[1732767092508,0.209094,95651.0,95641.0,0.15]
[1732767092509,0.104551,95647.0,95641.0,0.15]
[1732767092741,0.104551,95647.0,95636.0,0.09300047]
[1732767092742,0.00094181,95647.0,95636.0,0.09300047]
[1732767092967,0.00094181,95647.0,95631.0,0.15]
[1732767092968,0.104562,95637.0,95631.0,0.15]
[1732767093199,0.001,95637.0,95632.0,0.10284521]
[1732767093427,0.00094181,95644.0,95632.0,0.10284521]
[1732767093428,0.104556,95642.0,95635.0,0.104563]
[1732767093641,0.104556,95642.0,95632.0,0.10284521]
[1732767093642,0.104556,95642.0,95641.0,0.003]
[1732767094087,0.00094181,95647.0,95632.0,0.10284521]
[1732767094314,0.00094181,95647.0,95643.0,0.002]
[1732767094551,0.209101,95648.0,95643.0,0.002]
[1732767094779,0.00179951,95649.0,95632.0,0.31197921]
[1732767094780,0.104556,95643.0,95637.0,0.104561]
[1732767094989,0.104556,95643.0,95641.0,0.003]
[1732767095196,0.11176662,95642.0,95641.0,0.003]
[1732767095662,0.11176662,95642.0,95636.0,0.15]
[1732767095944,0.11276662,95642.0,95641.0,0.005]
[1732767096163,0.01245834,95642.0,95641.0,0.005]
[1732767096811,0.01145834,95642.0,95637.0,0.104561]
[1732767097028,0.01245834,95642.0,95637.0,0.104561]
[1732767097488,0.01245834,95642.0,95636.0,0.15]
[1732767097709,0.01084464,95642.0,95641.0,0.005]
[1732767097924,0.00179951,95649.0,95641.0,0.005]
[1732767097925,0.2091,95648.0,95641.0,0.003]
[1732767098145,0.01115404,95642.0,95641.0,0.003]
[1732767098371,0.104556,95643.0,95641.0,0.003]
[1732767098589,0.01115404,95642.0,95638.0,0.25555703]
[1732767098819,0.01115404,95642.0,95638.0,0.10456]
[1732767099231,0.01215404,95642.0,95637.0,0.005]
[1732767099437,0.01215404,95642.0,95636.0,0.153]
[1732767099438,0.104555,95643.0,95636.0,0.254562]
[1732767099662,0.01115472,95641.0,95638.0,0.10456]
[1732767099876,0.01215623,95642.0,95639.0,0.104559]
[1732767100094,0.01115322,95640.0,95639.0,0.104559]
[1732767100305,0.001,95642.0,95636.0,0.15]
[1732767100540,0.01115322,95640.0,95638.0,0.104559]
[1732767100762,0.104554,95644.0,95638.0,0.104559]
[1732767101030,0.0111514,95639.0,95638.0,0.104559]
[1732767101253,0.001,95642.0,95638.0,0.104559]
[1732767101681,0.01115441,95641.0,95636.0,0.15]
[1732767101891,0.01115441,95641.0,95637.0,0.003]
[1732767102098,0.00094181,95641.0,95637.0,0.003]
[1732767102346,0.01115205,95640.0,95637.0,0.003]
[1732767102572,0.01115205,95640.0,95636.0,0.254562]
[1732767102573,0.10252222,95638.0,95636.0,0.155]
[1732767102793,0.11571105,95640.0,95636.0,0.15]
[1732767103011,0.00094181,95641.0,95636.0,0.15]
[1732767103012,0.209105,95646.0,95638.0,0.003]
[1732767103243,0.001,95641.0,95638.0,0.003]
[1732767103839,0.001,95638.0,95636.0,0.007]
[1732767103928,0.001,95638.0,95636.0,0.157]
[1732767104156,0.209117,95640.0,95636.0,0.15]
[1732767104157,0.10550081,95640.0,95636.0,0.15]
[1732767104623,0.104559,95640.0,95636.0,0.15]
[1732767105090,0.104559,95640.0,95637.0,0.004]
[1732767105458,0.01114492,95639.0,95637.0,0.004]
[1732767105692,0.01114492,95639.0,95634.0,0.15]
[1732767106182,0.11570392,95639.0,95638.0,0.003]
[1732767106440,0.104562,95637.0,95636.0,0.004]
[1732767106689,0.22026592,95639.0,95637.0,0.007]
[1732767106690,0.01214492,95639.0,95637.0,0.007]
[1732767106913,0.209116,95641.0,95637.0,0.004]
[1732767107161,0.10456,95638.0,95637.0,0.004]
[1732767108066,0.10456,95638.0,95637.0,0.011]
[1732767108282,0.10550181,95638.0,95637.0,0.007]
[1732767109435,0.10550181,95638.0,95637.0,0.005]
[1732767109656,0.10550181,95638.0,95637.0,0.009]
[1732767110526,0.00194181,95638.0,95637.0,0.016]
[1732767110531,0.001,95638.0,95637.0,0.22340721]
[1732767112405,0.0008581,95648.0,95637.0,0.10284521]
[1732767112628,0.0008581,95648.0,95643.0,0.209109]
[1732767112857,0.0008581,95648.0,95645.0,0.104553]
[1732767113076,0.0008581,95648.0,95646.0,0.104552]
[1732767113307,0.0008581,95648.0,95644.0,0.10284521]
[1732767113535,0.00927724,95647.0,95646.0,0.104552]
[1732767113802,0.0008581,95648.0,95646.0,0.104552]
[1732767113995,0.00927724,95647.0,95644.0,0.10284521]
[1732767114207,0.0008581,95648.0,95646.0,0.104551]
[1732767114438,0.0008581,95648.0,95645.0,0.104553]
[1732767114665,0.0008581,95648.0,95647.0,0.104551]
[1732767115185,0.01013685,95648.0,95647.0,0.104551]
[1732767115822,0.0008581,95648.0,95647.0,0.104551]
[1732767116030,0.0018581,95648.0,95647.0,0.109551]
[1732767116244,0.01113685,95648.0,95647.0,0.005]
[1732767116446,0.11468685,95648.0,95647.0,0.005]
[1732767116695,0.1064081,95648.0,95647.0,0.012]
[1732767116900,0.01113685,95648.0,95647.0,0.012]
[1732767121109,0.0018581,95648.0,95647.0,0.116551]
[1732767121335,0.0018581,95648.0,95647.0,0.012]
[1732767121766,0.01113685,95648.0,95647.0,0.012]
[1732767121979,0.01113685,95648.0,95647.0,0.116551]
[1732767122187,0.01113685,95648.0,95647.0,0.012]
[1732767122394,0.0018581,95648.0,95647.0,0.012]
[1732767122626,0.01113685,95648.0,95647.0,0.012]
[1732767122833,0.01113685,95648.0,95647.0,0.116551]
[1732767123075,0.01113685,95648.0,95647.0,0.012]
[1732767123304,0.0018581,95648.0,95647.0,0.012]
[1732767123534,0.01113685,95648.0,95647.0,0.012]
[1732767123756,0.01113685,95648.0,95647.0,0.36939621]
[1732767123987,0.0018581,95648.0,95647.0,0.36939621]
[1732767124210,0.0018581,95648.0,95647.0,0.37939621]
[1732767124864,0.0018581,95648.0,95647.0,0.60544743]
[1732767125085,0.0008581,95648.0,95647.0,0.38375297]
[1732767125632,0.0018581,95648.0,95647.0,0.39275297]
[1732767125835,0.0018581,95648.0,95647.0,0.39775297]
[1732767126264,0.0018581,95648.0,95647.0,0.62875585]
[1732767126474,0.0018581,95648.0,95647.0,0.62375585]